[Event "FIDE World Rapid Chess Championship 2021"]
[White "Timofeev, Artyom"]
[Black "Blohberger, Felix"]
[WhiteFideId "4140419"]
[BlackFideId "1632051"]
[WhiteElo "2591"]
[BlackElo "2409"]
[Result "1-0"]
[Round "04"]
[TimeControl "900+10"]
[Date "2021.12.26"]
[WhiteClock "0:02:06"]
[BlackClock "0:00:23"]

1. c4 {[%clk 0:15:24]}  Nf6 {[%clk 0:15:27]} 2. Nc3 {[%clk 0:15:24]}  g6 {[%clk 0:15:27]} 3. g3 {[%clk 0:15:24]}  Bg7 {[%clk 0:15:27]} 4. Bg2 {[%clk 0:15:24]}  O-O {[%clk 0:15:27]} 5. d3 {[%clk 0:15:24]}  c5 {[%clk 0:15:27]} 6. Nh3 {[%clk 0:15:24]}  Nc6 {[%clk 0:15:27]} 7. Nf4 {[%clk 0:15:24]}  d6 {[%clk 0:15:27]} 8. O-O {[%clk 0:15:24]}  Qd7 {[%clk 0:15:27]} 9. Qa4 {[%clk 0:15:24]}  Rb8 {[%clk 0:15:21]} 10. Nfd5 {[%clk 0:15:19]}  a6 {[%clk 0:14:00]} 11. Nb6 {[%clk 0:14:15]}  Qc7 {[%clk 0:14:00]} 12. Nxc8 {[%clk 0:13:49]}  Rfxc8 {[%clk 0:11:35]} 13. Bg5 {[%clk 0:13:37]}  b5 {[%clk 0:11:41]} 14. Qc2 {[%clk 0:12:21]}  e6 {[%clk 0:11:41]} 15. Qd2 {[%clk 0:12:19]}  Qd7 {[%clk 0:08:36]} 16. Rac1 {[%clk 0:11:32]}  Ne7 {[%clk 0:08:36]} 17. Rfd1 {[%clk 0:10:58]}  Nf5 {[%clk 0:07:02]} 18. Ne4 {[%clk 0:09:56]}  Ne8 {[%clk 0:05:14]} 19. g4 {[%clk 0:09:56]}  Nd4 {[%clk 0:05:14]} 20. b3 {[%clk 0:09:56]}  Kh8 {[%clk 0:05:09]} 21. e3 {[%clk 0:08:33]}  Nc6 {[%clk 0:05:09]} 22. Bh4 {[%clk 0:08:33]}  f5 {[%clk 0:03:50]} 23. gxf5 {[%clk 0:07:22]}  gxf5 {[%clk 0:03:50]} 24. Ng3 {[%clk 0:07:22]}  Nf6 {[%clk 0:03:50]} 25. Qe2 {[%clk 0:06:57]}  Ne5 {[%clk 0:02:07]} 26. Nh5 {[%clk 0:06:27]}  Nxh5 {[%clk 0:01:42]} 27. Qxh5 {[%clk 0:04:36]}  Ng6 {[%clk 0:01:31]} 28. Bg5 {[%clk 0:04:43]}  a5 {[%clk 0:01:31]} 29. h4 {[%clk 0:02:52]}  a4 {[%clk 0:01:09]} 30. Qe2 {[%clk 0:02:52]}  h6 {[%clk 0:01:09]} 31. Qh5 {[%clk 0:02:52]}  Kh7 {[%clk 0:01:09]} 32. bxa4 {[%clk 0:02:52]}  bxa4 {[%clk 0:01:09]} 33. d4 {[%clk 0:02:52]}  cxd4 {[%clk 0:01:09]} 34. exd4 {[%clk 0:02:32]}  Rb2 {[%clk 0:00:26]} 35. a3 {[%clk 0:02:16]}  Rb3 {[%clk 0:00:26]} 36. c5 {[%clk 0:02:16]}  Rxa3 {[%clk 0:00:26]} 37. c6 {[%clk 0:02:16]}  Qf7 {[%clk 0:00:26]} 38. d5 {[%clk 0:02:16]}  e5 {[%clk 0:00:26]} 39. Bd2 {[%clk 0:02:16]}  Rb3 {[%clk 0:00:26]} 40. Rb1 {[%clk 0:01:20]}  e4 {[%clk 0:00:26]} 41. Rxb3 {[%clk 0:01:20]}  axb3 {[%clk 0:00:26]} 42. Bh3 {[%clk 0:01:20]}  Rf8 {[%clk 0:00:26]} 43. Bb4 {[%clk 0:01:20]}  Nf4 {[%clk 0:00:26]} 44. Qxf7 {[%clk 0:01:20]}  Nxh3+ {[%clk 0:00:26]} 45. Kh2 {[%clk 0:01:20]}  Rxf7 {[%clk 0:00:26]} 46. Kxh3 {[%clk 0:01:20]}  Be5 {[%clk 0:00:26]} 47. Rb1 {[%clk 0:01:20]}  b2 {[%clk 0:00:26]} 48. Ba3 {[%clk 0:01:20]}  f4 {[%clk 0:00:26]} 49. Bxb2 {[%clk 0:01:20]}  Bxb2 {[%clk 0:00:26]} 50. Rxb2 {[%clk 0:02:04]}  Kg6 {[%clk 0:00:26]} 51. Rb7 {[%clk 0:02:04]}  e3 {[%clk 0:00:16]} 52. fxe3 {[%clk 0:02:06]}  fxe3 {[%clk 0:00:23]} 53. Rxf7 {[%clk 0:02:06]} 1-0


[Site "http://www.Chess.com"]

[Event "FIDE World Rapid Chess Championship 2021"]
[White "Dvirnyy, Danyyil"]
[Black "Thybo, Jesper Sondergaard"]
[WhiteFideId "817570"]
[BlackFideId "1438832"]
[WhiteElo "2550"]
[BlackElo "2401"]
[Result "1/2-1/2"]
[Round "04"]
[TimeControl "900+10"]
[Date "2021.12.26"]
[WhiteClock "0:01:41"]
[BlackClock "0:03:26"]

1. e4 {[%clk 0:15:25]}  e5 {[%clk 0:15:26]} 2. Nf3 {[%clk 0:15:25]}  Nc6 {[%clk 0:15:26]} 3. Bb5 {[%clk 0:15:25]}  Nf6 {[%clk 0:15:26]} 4. d3 {[%clk 0:15:32]}  Bc5 {[%clk 0:15:26]} 5. c3 {[%clk 0:15:32]}  O-O {[%clk 0:15:26]} 6. Bg5 {[%clk 0:15:32]}  h6 {[%clk 0:15:26]} 7. Bh4 {[%clk 0:15:32]}  Be7 {[%clk 0:14:49]} 8. Bg3 {[%clk 0:14:47]}  d6 {[%clk 0:14:49]} 9. O-O {[%clk 0:14:47]}  a6 {[%clk 0:14:49]} 10. Ba4 {[%clk 0:13:26]}  Nh5 {[%clk 0:14:08]} 11. Bxc6 {[%clk 0:13:26]}  bxc6 {[%clk 0:14:08]} 12. Nxe5 {[%clk 0:13:26]}  dxe5 {[%clk 0:14:08]} 13. Qxh5 {[%clk 0:13:26]}  Qxd3 {[%clk 0:14:08]} 14. Qxe5 {[%clk 0:13:26]}  Be6 {[%clk 0:14:02]} 15. Qxc7 {[%clk 0:13:10]}  Rfe8 {[%clk 0:11:22]} 16. Qxc6 {[%clk 0:13:08]}  Qe2 {[%clk 0:09:10]} 17. Na3 {[%clk 0:11:55]}  Qxb2 {[%clk 0:09:10]} 18. Nc4 {[%clk 0:11:55]}  Qb5 {[%clk 0:06:15]} 19. Qxb5 {[%clk 0:11:45]}  axb5 {[%clk 0:06:15]} 20. Nd6 {[%clk 0:09:14]}  Bxd6 {[%clk 0:06:24]} 21. Bxd6 {[%clk 0:09:14]}  Rxa2 {[%clk 0:06:24]} 22. Rxa2 {[%clk 0:09:14]}  Bxa2 {[%clk 0:06:24]} 23. f3 {[%clk 0:09:14]}  Ra8 {[%clk 0:06:42]} 24. h4 {[%clk 0:08:07]}  Bc4 {[%clk 0:06:42]} 25. Rd1 {[%clk 0:08:07]}  h5 {[%clk 0:04:56]} 26. Bc5 {[%clk 0:06:57]}  Ra2 {[%clk 0:04:56]} 27. Bd4 {[%clk 0:05:59]}  Kh7 {[%clk 0:04:07]} 28. Be5 {[%clk 0:03:02]}  Rc2 {[%clk 0:03:34]} 29. Ra1 {[%clk 0:02:59]}  Ra2 {[%clk 0:03:29]} 30. Rd1 {[%clk 0:02:59]}  Rc2 {[%clk 0:03:29]} 31. Rd7 {[%clk 0:02:59]}  Kg8 {[%clk 0:03:29]} 32. Rd8+ {[%clk 0:02:01]}  Kh7 {[%clk 0:03:18]} 33. Rd7 {[%clk 0:01:41]}  Kg8 {[%clk 0:03:26]} 34. Rd8+ {[%clk 0:01:41]}  Kh7 {[%clk 0:03:26]} 35. Rd7 {[%clk 0:01:41]} 1/2-1/2


[Site "http://www.Chess.com"]

[Event "FIDE World Rapid Chess Championship 2021"]
[White "Vokhidov, Shamsiddin"]
[Black "Nasuta, Grzegorz"]
[WhiteFideId "14204223"]
[BlackFideId "1141686"]
[WhiteElo "2546"]
[BlackElo "2345"]
[Result "1-0"]
[Round "04"]
[TimeControl "900+10"]
[Date "2021.12.26"]
[WhiteClock "0:12:41"]
[BlackClock "0:03:43"]

1. e4 {[%clk 0:15:43]}  e5 {[%clk 0:15:45]} 2. Nf3 {[%clk 0:15:43]}  Nc6 {[%clk 0:15:45]} 3. Bb5 {[%clk 0:15:43]}  a6 {[%clk 0:15:45]} 4. Ba4 {[%clk 0:15:43]}  Nf6 {[%clk 0:15:45]} 5. O-O {[%clk 0:15:43]}  Be7 {[%clk 0:15:45]} 6. d3 {[%clk 0:15:51]}  b5 {[%clk 0:15:45]} 7. Bb3 {[%clk 0:15:51]}  d6 {[%clk 0:15:45]} 8. a3 {[%clk 0:15:51]}  O-O {[%clk 0:15:45]} 9. Nc3 {[%clk 0:15:51]}  Na5 {[%clk 0:15:45]} 10. Ba2 {[%clk 0:15:51]}  Be6 {[%clk 0:15:45]} 11. b4 {[%clk 0:15:51]}  Bxa2 {[%clk 0:15:45]} 12. Nxa2 {[%clk 0:15:51]}  Nc6 {[%clk 0:15:45]} 13. c4 {[%clk 0:15:51]}  Qd7 {[%clk 0:15:45]} 14. Nc3 {[%clk 0:15:51]}  Nd4 {[%clk 0:15:45]} 15. Be3 {[%clk 0:15:51]}  Nxf3+ {[%clk 0:15:45]} 16. Qxf3 {[%clk 0:15:51]}  c6 {[%clk 0:15:45]} 17. a4 {[%clk 0:17:07]}  d5 {[%clk 0:13:57]} 18. exd5 {[%clk 0:16:01]}  cxd5 {[%clk 0:13:57]} 19. Nxd5 {[%clk 0:16:01]}  Nxd5 {[%clk 0:13:57]} 20. Qxd5 {[%clk 0:16:01]}  Qxd5 {[%clk 0:13:58]} 21. cxd5 {[%clk 0:15:36]}  Rad8 {[%clk 0:13:58]} 22. axb5 {[%clk 0:15:25]}  axb5 {[%clk 0:10:28]} 23. Ra7 {[%clk 0:15:02]}  Rfe8 {[%clk 0:10:45]} 24. Rc1 {[%clk 0:15:02]}  Bxb4 {[%clk 0:10:45]} 25. Rb1 {[%clk 0:12:40]}  Re7 {[%clk 0:10:45]} 26. Rxb4 {[%clk 0:12:40]}  Rxa7 {[%clk 0:10:45]} 27. Bxa7 {[%clk 0:12:40]}  Rxd5 {[%clk 0:10:45]} 28. d4 {[%clk 0:12:40]}  f6 {[%clk 0:10:45]} 29. Kf1 {[%clk 0:12:40]}  Kf7 {[%clk 0:03:28]} 30. Ke2 {[%clk 0:12:45]}  exd4 {[%clk 0:03:28]} 31. Bxd4 {[%clk 0:12:45]}  Ke6 {[%clk 0:03:28]} 32. Kd3 {[%clk 0:12:45]}  Rf5 {[%clk 0:03:28]} 33. Rb1 {[%clk 0:12:45]}  Rh5 {[%clk 0:03:28]} 34. h3 {[%clk 0:12:45]}  Rg5 {[%clk 0:03:28]} 35. g3 {[%clk 0:12:45]}  Rd5 {[%clk 0:03:28]} 36. Ra1 {[%clk 0:12:45]}  Rd7 {[%clk 0:03:28]} 37. Ra7 {[%clk 0:12:45]}  Rxa7 {[%clk 0:03:43]} 38. Bxa7 {[%clk 0:12:41]}  Kd5 {[%clk 0:03:43]} 39. Bd4 {[%clk 0:12:41]}  h5 {[%clk 0:03:43]} 40. h4 {[%clk 0:12:41]}  Ke6 {[%clk 0:03:43]} 41. Ke4 {[%clk 0:12:41]}  b4 {[%clk 0:03:43]} 42. Bb2 {[%clk 0:12:41]}  b3 {[%clk 0:03:43]} 43. f3 {[%clk 0:12:41]}  g5 {[%clk 0:03:43]} 44. f4 {[%clk 0:12:41]} 1-0


[Site "http://www.Chess.com"]

[Event "FIDE World Rapid Chess Championship 2021"]
[White "Gagunashvili, Merab"]
[Black "Kanarek, Marcel"]
[WhiteFideId "13601652"]
[BlackFideId "1126822"]
[WhiteElo "2538"]
[BlackElo "2296"]
[Result "0-1"]
[Round "04"]
[TimeControl "900+10"]
[Date "2021.12.26"]
[WhiteClock "0:02:40"]
[BlackClock "0:00:00"]

1. d4 {[%clk 0:15:47]}  Nf6 {[%clk 0:15:34]} 2. c4 {[%clk 0:15:47]}  g6 {[%clk 0:15:34]} 3. Nf3 {[%clk 0:15:47]}  Bg7 {[%clk 0:15:34]} 4. g3 {[%clk 0:15:47]}  c6 {[%clk 0:15:34]} 5. Bg2 {[%clk 0:15:47]}  d5 {[%clk 0:15:34]} 6. Qb3 {[%clk 0:15:47]}  O-O {[%clk 0:15:34]} 7. O-O {[%clk 0:15:47]}  Qb6 {[%clk 0:15:34]} 8. Nc3 {[%clk 0:15:47]}  Bf5 {[%clk 0:15:34]} 9. c5 {[%clk 0:16:07]}  Qxb3 {[%clk 0:14:02]} 10. axb3 {[%clk 0:16:07]}  Nbd7 {[%clk 0:13:42]} 11. b4 {[%clk 0:16:15]}  a6 {[%clk 0:13:42]} 12. h3 {[%clk 0:16:15]}  h6 {[%clk 0:13:42]} 13. g4 {[%clk 0:16:15]}  Be6 {[%clk 0:13:42]} 14. Bf4 {[%clk 0:16:15]}  Ne4 {[%clk 0:09:28]} 15. e3 {[%clk 0:16:17]}  g5 {[%clk 0:09:28]} 16. Bh2 {[%clk 0:16:17]}  f5 {[%clk 0:09:28]} 17. Nxe4 {[%clk 0:15:57]}  fxe4 {[%clk 0:09:01]} 18. Nd2 {[%clk 0:15:57]}  Bf7 {[%clk 0:09:01]} 19. Nb3 {[%clk 0:15:57]}  e5 {[%clk 0:07:59]} 20. Rfd1 {[%clk 0:14:23]}  Bg6 {[%clk 0:07:59]} 21. Na5 {[%clk 0:14:23]}  Ra7 {[%clk 0:07:59]} 22. Rd2 {[%clk 0:14:23]}  Rf7 {[%clk 0:05:10]} 23. Nb3 {[%clk 0:14:43]}  Ra8 {[%clk 0:05:10]} 24. Na5 {[%clk 0:13:06]}  exd4 {[%clk 0:04:42]} 25. exd4 {[%clk 0:11:40]}  Nf8 {[%clk 0:04:29]} 26. Nb3 {[%clk 0:11:40]}  Re8 {[%clk 0:04:29]} 27. Re1 {[%clk 0:11:40]}  Ne6 {[%clk 0:04:29]} 28. Re3 {[%clk 0:11:40]}  Nf4 {[%clk 0:04:29]} 29. Bf1 {[%clk 0:09:15]}  Rfe7 {[%clk 0:03:51]} 30. Bg3 {[%clk 0:09:15]}  Bf6 {[%clk 0:03:51]} 31. f3 {[%clk 0:08:35]}  exf3 {[%clk 0:02:57]} 32. Rxf3 {[%clk 0:08:35]}  Re3 {[%clk 0:02:57]} 33. Kf2 {[%clk 0:08:35]}  Re1 {[%clk 0:01:29]} 34. Na5 {[%clk 0:06:47]}  Rb1 {[%clk 0:01:29]} 35. Nxb7 {[%clk 0:06:47]}  Ree1 {[%clk 0:01:29]} 36. Bxa6 {[%clk 0:06:47]}  Be4 {[%clk 0:01:29]} 37. Rxf4 {[%clk 0:06:47]}  gxf4 {[%clk 0:00:50]} 38. Bxf4 {[%clk 0:03:20]}  Rg1 {[%clk 0:00:30]} 39. Ke3 {[%clk 0:03:20]}  Rbe1+ {[%clk 0:00:30]} 40. Re2 {[%clk 0:03:20]}  Rd1 {[%clk 0:00:30]} 41. Rd2 {[%clk 0:03:20]}  Rxd2 {[%clk 0:00:30]} 42. Kxd2 {[%clk 0:03:20]}  Bxd4 {[%clk 0:00:30]} 43. Be2 {[%clk 0:03:20]}  Bxb2 {[%clk 0:00:30]} 44. Bd6 {[%clk 0:02:40]}  d4 {[%clk 0:00:00]} 45. Bc4+ {[%clk 0:02:40]}  Kh7 {[%clk 0:00:00]} 46. Ke2 {[%clk 0:02:40]}  Rg2+ {[%clk 0:00:00]} 47. Kf1 {[%clk 0:02:40]}  Rc2 {[%clk 0:00:00]} 48. Na5 {[%clk 0:02:40]}  Rxc4 {[%clk 0:00:00]} 49. Nxc4 {[%clk 0:02:40]}  Bd3+ {[%clk 0:00:00]} 50. Kf2 {[%clk 0:02:40]}  Bxc4 {[%clk 0:00:00]} 51. Be5 {[%clk 0:02:40]}  d3 {[%clk 0:00:00]} 52. Bf4 {[%clk 0:02:40]}  Bc3 {[%clk 0:00:00]} 53. b5 {[%clk 0:02:40]}  Bxb5 {[%clk 0:00:00]} 0-1


[Site "http://www.Chess.com"]

[Event "FIDE World Rapid Chess Championship 2021"]
[White "Durarbayli, Vasif"]
[Black "Lubczynski, Rafal"]
[WhiteFideId "13402935"]
[BlackFideId "1126091"]
[WhiteElo "2532"]
[BlackElo "2289"]
[Result "1-0"]
[Round "04"]
[TimeControl "900+10"]
[Date "2021.12.26"]
[WhiteClock "0:10:47"]
[BlackClock "0:00:30"]

1. e4 {[%clk 0:15:42]}  d6 {[%clk 0:15:36]} 2. d4 {[%clk 0:15:42]}  Nf6 {[%clk 0:15:36]} 3. Nc3 {[%clk 0:15:42]}  e5 {[%clk 0:15:36]} 4. Nf3 {[%clk 0:15:42]}  Nbd7 {[%clk 0:15:36]} 5. g3 {[%clk 0:15:40]}  c6 {[%clk 0:15:36]} 6. Bg2 {[%clk 0:15:40]}  g6 {[%clk 0:15:36]} 7. O-O {[%clk 0:15:40]}  Bg7 {[%clk 0:15:36]} 8. dxe5 {[%clk 0:15:40]}  dxe5 {[%clk 0:15:36]} 9. Qd6 {[%clk 0:15:40]}  Qe7 {[%clk 0:14:39]} 10. Qxe7+ {[%clk 0:16:03]}  Kxe7 {[%clk 0:14:39]} 11. b3 {[%clk 0:16:03]}  h6 {[%clk 0:14:39]} 12. Ba3+ {[%clk 0:16:03]}  Kd8 {[%clk 0:10:41]} 13. Rad1 {[%clk 0:16:04]}  Ne8 {[%clk 0:09:21]} 14. Rd2 {[%clk 0:16:04]}  Kc7 {[%clk 0:09:21]} 15. Rfd1 {[%clk 0:16:04]}  Nf8 {[%clk 0:08:23]} 16. Be7 {[%clk 0:15:24]}  Ne6 {[%clk 0:07:24]} 17. a4 {[%clk 0:14:03]}  f6 {[%clk 0:04:46]} 18. Nh4 {[%clk 0:13:23]}  Nd4 {[%clk 0:01:33]} 19. Nxg6 {[%clk 0:11:01]}  Rg8 {[%clk 0:01:33]} 20. Ne2 {[%clk 0:11:04]}  f5 {[%clk 0:01:41]} 21. Nxd4 {[%clk 0:11:04]}  exd4 {[%clk 0:01:41]} 22. e5 {[%clk 0:11:04]}  Kd7 {[%clk 0:01:41]} 23. Rxd4+ {[%clk 0:11:04]}  Ke6 {[%clk 0:01:41]} 24. Ba3 {[%clk 0:11:04]}  Bxe5 {[%clk 0:00:30]} 25. Nxe5 {[%clk 0:10:47]}  Kxe5 {[%clk 0:00:30]} 26. Rd8 {[%clk 0:10:47]}  Nf6 {[%clk 0:00:30]} 27. Re1+ {[%clk 0:10:47]} 1-0


[Site "http://www.Chess.com"]

[Event "FIDE World Rapid Chess Championship 2021"]
[White "Sadzikowski, Daniel"]
[Black "Moroni, Luca Jr"]
[WhiteFideId "1132253"]
[BlackFideId "865834"]
[WhiteElo "2414"]
[BlackElo "2519"]
[Result "1/2-1/2"]
[Round "04"]
[TimeControl "900+10"]
[Date "2021.12.26"]
[WhiteClock "0:00:33"]
[BlackClock "0:00:26"]

1. Nf3 {[%clk 0:15:33]}  g6 {[%clk 0:15:28]} 2. e4 {[%clk 0:15:33]}  Bg7 {[%clk 0:15:28]} 3. d4 {[%clk 0:15:33]}  d6 {[%clk 0:15:28]} 4. Be2 {[%clk 0:15:33]}  Nf6 {[%clk 0:15:28]} 5. Nc3 {[%clk 0:15:33]}  O-O {[%clk 0:15:28]} 6. O-O {[%clk 0:15:33]}  a6 {[%clk 0:15:28]} 7. Re1 {[%clk 0:15:33]}  b5 {[%clk 0:15:28]} 8. e5 {[%clk 0:15:33]}  Nfd7 {[%clk 0:15:28]} 9. e6 {[%clk 0:14:37]}  fxe6 {[%clk 0:15:49]} 10. Ng5 {[%clk 0:13:52]}  Nf6 {[%clk 0:10:31]} 11. Bf3 {[%clk 0:14:00]}  c6 {[%clk 0:10:31]} 12. Nxe6 {[%clk 0:14:00]}  Bxe6 {[%clk 0:10:31]} 13. Rxe6 {[%clk 0:14:00]}  Ra7 {[%clk 0:10:31]} 14. Bg5 {[%clk 0:13:43]}  Rf7 {[%clk 0:09:21]} 15. Qd2 {[%clk 0:13:03]}  Rc7 {[%clk 0:08:39]} 16. Rae1 {[%clk 0:11:28]}  Nbd7 {[%clk 0:08:39]} 17. Ne4 {[%clk 0:11:17]}  Nxe4 {[%clk 0:07:50]} 18. R6xe4 {[%clk 0:11:17]}  Nf6 {[%clk 0:07:50]} 19. Re6 {[%clk 0:11:17]}  c5 {[%clk 0:06:39]} 20. dxc5 {[%clk 0:09:05]}  Rxc5 {[%clk 0:06:39]} 21. c3 {[%clk 0:09:05]}  Rc7 {[%clk 0:05:34]} 22. Bd1 {[%clk 0:08:03]}  Kh8 {[%clk 0:05:02]} 23. Bb3 {[%clk 0:06:46]}  Rf8 {[%clk 0:05:02]} 24. Qe2 {[%clk 0:06:46]}  Rc5 {[%clk 0:03:13]} 25. Be3 {[%clk 0:05:39]}  Rf5 {[%clk 0:03:13]} 26. Bd4 {[%clk 0:05:39]}  Ng8 {[%clk 0:03:13]} 27. Bxg7+ {[%clk 0:05:08]}  Kxg7 {[%clk 0:01:56]} 28. f3 {[%clk 0:05:08]}  Qb6+ {[%clk 0:01:56]} 29. Qf2 {[%clk 0:05:08]}  Qxf2+ {[%clk 0:01:56]} 30. Kxf2 {[%clk 0:05:08]}  Rc5 {[%clk 0:01:56]} 31. a3 {[%clk 0:05:08]}  a5 {[%clk 0:01:31]} 32. R1e4 {[%clk 0:03:28]}  Rb8 {[%clk 0:01:23]} 33. h4 {[%clk 0:03:28]}  Rf8 {[%clk 0:01:23]} 34. Ke2 {[%clk 0:02:07]}  Rc7 {[%clk 0:00:50]} 35. g3 {[%clk 0:02:02]}  Rf6 {[%clk 0:00:47]} 36. f4 {[%clk 0:02:02]}  Rxe6 {[%clk 0:00:47]} 37. Rxe6 {[%clk 0:02:02]}  Nf6 {[%clk 0:00:47]} 38. Kf3 {[%clk 0:02:02]}  Kf8 {[%clk 0:00:47]} 39. g4 {[%clk 0:02:02]}  Nd7 {[%clk 0:00:47]} 40. Re2 {[%clk 0:02:02]}  e5 {[%clk 0:00:47]} 41. Rd2 {[%clk 0:01:29]}  Ke7 {[%clk 0:00:36]} 42. fxe5 {[%clk 0:01:29]}  Nxe5+ {[%clk 0:00:36]} 43. Kg3 {[%clk 0:01:29]}  Rc8 {[%clk 0:00:36]} 44. Rf2 {[%clk 0:01:29]}  Rf8 {[%clk 0:00:36]} 45. Rxf8 {[%clk 0:01:29]}  Kxf8 {[%clk 0:00:36]} 46. a4 {[%clk 0:00:23]}  bxa4 {[%clk 0:00:53]} 47. Bxa4 {[%clk 0:00:23]}  Nd3 {[%clk 0:00:53]} 48. b3 {[%clk 0:00:16]}  Nc5 {[%clk 0:01:02]} 49. Kf4 {[%clk 0:00:26]}  Kf7 {[%clk 0:01:15]} 50. Ke3 {[%clk 0:00:26]}  Kf6 {[%clk 0:01:15]} 51. Kd4 {[%clk 0:00:26]}  g5 {[%clk 0:01:15]} 52. hxg5+ {[%clk 0:00:26]}  Kxg5 {[%clk 0:01:15]} 53. Kd5 {[%clk 0:00:26]}  Kxg4 {[%clk 0:01:15]} 54. Kxd6 {[%clk 0:00:26]}  Ne4+ {[%clk 0:01:15]} 55. Kc7 {[%clk 0:00:26]}  Nxc3 {[%clk 0:01:15]} 56. Bd7+ {[%clk 0:00:26]}  Kf4 {[%clk 0:00:26]} 57. Kb6 {[%clk 0:00:33]}  Ke5 {[%clk 0:00:26]} 58. Kxa5 {[%clk 0:00:33]}  h5 {[%clk 0:00:26]} 1/2-1/2


[Site "http://www.Chess.com"]

[Event "FIDE World Rapid Chess Championship 2021"]
[White "Sychev, Klementy"]
[Black "Toczek, Grzegorz"]
[WhiteFideId "4114060"]
[BlackFideId "1106457"]
[WhiteElo "2461"]
[BlackElo "2220"]
[Result "1-0"]
[Round "04"]
[TimeControl "900+10"]
[Date "2021.12.26"]
[WhiteClock "0:06:40"]
[BlackClock "0:03:35"]

1. e4 {[%clk 0:15:06]}  c5 {[%clk 0:15:00]} 2. Nf3 {[%clk 0:15:18]}  d6 {[%clk 0:15:00]} 3. d4 {[%clk 0:15:18]}  cxd4 {[%clk 0:15:00]} 4. Nxd4 {[%clk 0:15:18]}  Nf6 {[%clk 0:15:00]} 5. Nc3 {[%clk 0:15:18]}  Nc6 {[%clk 0:15:00]} 6. Bg5 {[%clk 0:15:18]}  g6 {[%clk 0:15:00]} 7. Bxf6 {[%clk 0:15:18]}  exf6 {[%clk 0:15:00]} 8. Bb5 {[%clk 0:15:18]}  Bd7 {[%clk 0:15:00]} 9. Nde2 {[%clk 0:15:18]}  Be7 {[%clk 0:15:00]} 10. Qd2 {[%clk 0:15:18]}  O-O {[%clk 0:15:00]} 11. O-O-O {[%clk 0:15:34]}  Be6 {[%clk 0:15:28]} 12. h4 {[%clk 0:15:34]}  f5 {[%clk 0:14:04]} 13. exf5 {[%clk 0:15:16]}  Bxf5 {[%clk 0:14:04]} 14. Bd3 {[%clk 0:15:16]}  Bxd3 {[%clk 0:09:03]} 15. Qxd3 {[%clk 0:15:07]}  Qa5 {[%clk 0:09:03]} 16. a3 {[%clk 0:15:13]}  Ne5 {[%clk 0:06:26]} 17. Qe4 {[%clk 0:14:26]}  Qc5 {[%clk 0:04:17]} 18. f4 {[%clk 0:14:06]}  Nc6 {[%clk 0:04:17]} 19. h5 {[%clk 0:08:19]}  Bf6 {[%clk 0:04:19]} 20. hxg6 {[%clk 0:08:19]}  hxg6 {[%clk 0:04:19]} 21. Qf3 {[%clk 0:06:40]}  Rfe8 {[%clk 0:03:35]} 22. Ne4 {[%clk 0:06:40]}  Qf5 {[%clk 0:03:35]} 23. N2g3 {[%clk 0:06:40]} 1-0


[Site "http://www.Chess.com"]

[Event "FIDE World Rapid Chess Championship 2021"]
[White "Holm, Kristian Stuvik"]
[Black "Postny, Evgeny"]
[WhiteFideId "1508083"]
[BlackFideId "2804344"]
[WhiteElo "2409"]
[BlackElo "2454"]
[Result "1-0"]
[Round "04"]
[TimeControl "900+10"]
[Date "2021.12.26"]
[WhiteClock "0:00:58"]
[BlackClock "0:00:39"]

1. d4 {[%clk 0:15:17]}  d5 {[%clk 0:15:12]} 2. c4 {[%clk 0:15:17]}  dxc4 {[%clk 0:15:12]} 3. Nf3 {[%clk 0:15:17]}  Nf6 {[%clk 0:15:12]} 4. e3 {[%clk 0:15:17]}  b5 {[%clk 0:15:12]} 5. a4 {[%clk 0:15:17]}  b4 {[%clk 0:15:12]} 6. a5 {[%clk 0:15:17]}  e6 {[%clk 0:15:12]} 7. a6 {[%clk 0:15:17]}  Be7 {[%clk 0:15:12]} 8. Bxc4 {[%clk 0:15:17]}  O-O {[%clk 0:15:12]} 9. O-O {[%clk 0:15:17]}  Nbd7 {[%clk 0:14:58]} 10. Nbd2 {[%clk 0:15:30]}  c5 {[%clk 0:14:58]} 11. Qe2 {[%clk 0:15:30]}  cxd4 {[%clk 0:14:18]} 12. exd4 {[%clk 0:14:29]}  Nb6 {[%clk 0:14:18]} 13. Bd3 {[%clk 0:14:29]}  Nbd5 {[%clk 0:14:18]} 14. Nb3 {[%clk 0:14:29]}  Bd7 {[%clk 0:11:57]} 15. Bd2 {[%clk 0:14:23]}  Qb6 {[%clk 0:11:42]} 16. Ne5 {[%clk 0:14:23]}  Rfc8 {[%clk 0:11:12]} 17. Nxd7 {[%clk 0:12:40]}  Nxd7 {[%clk 0:11:12]} 18. Rfc1 {[%clk 0:12:40]}  g6 {[%clk 0:11:12]} 19. g3 {[%clk 0:12:40]}  Bf8 {[%clk 0:11:12]} 20. Be4 {[%clk 0:08:27]}  N7f6 {[%clk 0:10:50]} 21. Bf3 {[%clk 0:08:27]}  Rab8 {[%clk 0:10:50]} 22. Rc4 {[%clk 0:06:15]}  Ne8 {[%clk 0:10:09]} 23. Rac1 {[%clk 0:06:15]}  Rxc4 {[%clk 0:07:54]} 24. Qxc4 {[%clk 0:06:15]}  Qd8 {[%clk 0:07:54]} 25. Bxd5 {[%clk 0:05:19]}  exd5 {[%clk 0:06:33]} 26. Qc6 {[%clk 0:05:19]}  Ng7 {[%clk 0:06:20]} 27. Qc7 {[%clk 0:03:10]}  Qxc7 {[%clk 0:02:52]} 28. Rxc7 {[%clk 0:03:10]}  Ra8 {[%clk 0:02:52]} 29. Rd7 {[%clk 0:03:10]}  Ne6 {[%clk 0:02:52]} 30. Rxd5 {[%clk 0:03:10]}  Nc7 {[%clk 0:02:52]} 31. Ra5 {[%clk 0:03:10]}  Rd8 {[%clk 0:02:52]} 32. Kg2 {[%clk 0:02:13]}  Bd6 {[%clk 0:02:25]} 33. Be3 {[%clk 0:02:13]}  Bf8 {[%clk 0:02:25]} 34. Nc5 {[%clk 0:01:09]}  Rd5 {[%clk 0:01:22]} 35. Ra4 {[%clk 0:01:09]}  Rd6 {[%clk 0:01:22]} 36. Rxb4 {[%clk 0:01:09]}  Nxa6 {[%clk 0:01:22]} 37. Ra4 {[%clk 0:01:09]}  Nxc5 {[%clk 0:01:22]} 38. dxc5 {[%clk 0:01:09]}  Rc6 {[%clk 0:01:22]} 39. b4 {[%clk 0:01:09]}  a6 {[%clk 0:01:22]} 40. Kf3 {[%clk 0:01:09]}  f5 {[%clk 0:01:22]} 41. Ke2 {[%clk 0:01:25]}  Kf7 {[%clk 0:01:01]} 42. Kd3 {[%clk 0:01:25]}  Ke6 {[%clk 0:01:01]} 43. Kc4 {[%clk 0:01:25]}  Be7 {[%clk 0:01:01]} 44. Ra2 {[%clk 0:01:25]}  g5 {[%clk 0:01:01]} 45. Bd4 {[%clk 0:01:25]}  Kd7 {[%clk 0:01:01]} 46. f3 {[%clk 0:01:25]}  g4 {[%clk 0:01:01]} 47. f4 {[%clk 0:00:39]}  h5 {[%clk 0:00:53]} 48. Rd2 {[%clk 0:00:39]}  Re6 {[%clk 0:00:32]} 49. Bf6+ {[%clk 0:00:35]}  Kc7 {[%clk 0:00:26]} 50. Be5+ {[%clk 0:00:35]}  Kc6 {[%clk 0:00:26]} 51. Ra2 {[%clk 0:00:35]}  Kb7 {[%clk 0:00:26]} 52. Kd5 {[%clk 0:00:35]}  Rh6 {[%clk 0:00:26]} 53. Re2 {[%clk 0:00:35]}  Bd8 {[%clk 0:00:26]} 54. Bd6 {[%clk 0:00:35]}  Rh8 {[%clk 0:00:26]} 55. Re5 {[%clk 0:00:35]}  h4 {[%clk 0:00:26]} 56. Rxf5 {[%clk 0:00:35]}  hxg3 {[%clk 0:00:39]} 57. Rf7+ {[%clk 0:00:58]}  Kc8 {[%clk 0:00:39]} 58. hxg3 {[%clk 0:00:58]}  Rh1 {[%clk 0:00:39]} 59. Kc6 {[%clk 0:00:58]} 1-0


[Site "http://www.Chess.com"]